fUST/lending_fUST_20250108
["ID","MTS","AMOUNT","RATE_DAILY","PERIOD"]
[348094411,1736308238594,-504.53448255,0.00022998,3]
[348094413,1736308238603,-500.68227511,0.00022998,3]
[348094414,1736308238613,-188.65105198,0.00022998,2]
[348094417,1736308238622,-303.47131887,0.00022998,3]
[348094419,1736308238632,-500.0,0.00022998,3]
[348094421,1736308238642,-500.0,0.00022998,3]
[348094423,1736308238652,-500.0,0.00022998,3]
[348094425,1736308238661,-500.0,0.00022998,3]
[348094427,1736308238671,-500.0,0.00022998,3]
[348094429,1736308238681,-500.0,0.00022998,3]
[348094431,1736308238691,-228.04391185,0.00022998,3]
[348094433,1736308238701,-500.0,0.00022998,3]
[348094435,1736308238711,-500.0,0.00022998,3]
[348094437,1736308238723,-500.0,0.00022998,3]
[348094439,1736308238733,-500.0,0.00022998,3]
[348094441,1736308238744,-500.0,0.00022998,3]
[348094443,1736308238754,-500.0,0.00022998,3]
[348094445,1736308238765,-500.0,0.00022998,3]
[348094447,1736308238775,-500.0,0.00022998,3]
[348094449,1736308238787,-500.0,0.00022998,3]
[348094451,1736308238796,-500.0,0.00022998,3]
[348094453,1736308238805,-500.0,0.00022998,3]
[348094455,1736308238815,-500.0,0.00022998,3]
[348094457,1736308238824,-500.0,0.00022998,3]
[348094459,1736308238834,-563.73133439,0.00022998,3]
[348094461,1736308238845,-500.0,0.00022998,3]
[348094463,1736308238855,-500.0,0.00022998,3]
[348094465,1736308238864,-500.0,0.00022998,3]
[348094467,1736308238874,-347.70783114,0.00023,14]
[348094469,1736308238884,-3245.46370048,0.00023,14]
[348094471,1736308238898,-404.28629952,0.00023,14]
[348094473,1736308238908,-3077.42,0.00023,2]
[348094475,1736308238917,-667.32,0.00023,3]
[348094477,1736308238927,-500.0,0.00023,3]
[348094479,1736308238936,-500.0,0.00023,3]
[348094481,1736308238945,-500.0,0.00023,3]
[348094483,1736308238954,-152.89,0.00023,31]
[348094485,1736308238964,-152.89,0.00023,31]
[348094487,1736308238973,-152.89,0.00023,31]
[348094489,1736308238983,-152.89,0.00023,31]
[348094491,1736308238993,-152.89,0.00023,31]
[348094493,1736308239003,-106.36677862,0.00023,31]
[348094610,1736308240114,-46.52322138,0.00023,31]
[348094613,1736308240124,-712.89,0.00023,3]
[348094615,1736308240134,-401.88,0.00023,2]
[348094617,1736308240144,-204.61754039,0.00023006,2]
[348094618,1736308240153,-5707.29558905,0.00023007,7]
[348094621,1736308240165,-5707.29558905,0.00023007,10]
[348094623,1736308240175,-322219.49805431,0.00023008,10]
[348094810,1736308242039,5707.29558905,0.00021,2]
[348095050,1736308244605,-500.0,0.00022989,25]
[348095052,1736308244617,-594.75060566,0.00022989,25]
[348095054,1736308244626,-1151234.7904748,0.00023008,10]
[348095427,1736308248377,394.0,0.00022415,2]
[348095435,1736308248439,500.0,0.00021518,3]
[348095462,1736308248693,390.07467251,0.00021792,3]
[348095501,1736308249245,500.0,0.00021516,3]
[348095531,1736308249531,500.0,0.0002179,3]
[348095635,1736308250533,500.0,0.00022064,3]
[348095670,1736308250859,500.0,0.00022338,3]
[348095968,1736308254029,638.14602566,0.00021518,3]
[348096058,1736308265959,511.59974489,0.00021517,3]
[348096059,1736308271762,155.49884912,0.00021518,3]
[348096060,1736308273668,500.0,0.00021518,3]
[348096061,1736308274109,500.0,0.00021792,3]
[348096062,1736308275744,500.0,0.00022066,3]
[348096063,1736308276504,300.42,0.0002234,3]
[348096064,1736308277066,150.0,0.00019489,2]
[348096065,1736308280808,505.98419565,0.00021518,3]
[348096066,1736308286010,507.59743901,0.00021518,3]
[348096067,1736308286943,507.82650655,0.00021517,3]
[348096068,1736308298905,500.0,0.00021518,3]
[348096069,1736308299124,500.0,0.00021792,3]
[348096070,1736308299421,588.96,0.00022066,3]
[348096071,1736308303026,183.99898311,0.00022022,2]
[348096072,1736308315165,500.0,0.00021516,3]
[348096073,1736308315443,500.0,0.0002179,3]
[348096074,1736308315709,500.0,0.00022064,3]
[348096075,1736308315975,500.0,0.00022338,3]
[348096076,1736308316808,2899.7,0.00021517,3]
[348096077,1736308317066,2899.7,0.00021791,3]
[348096078,1736308317319,2899.7,0.00022065,3]
[348096079,1736308317582,2899.7,0.00022339,3]
[348096080,1736308323763,598.9,0.00021516,3]
[348096081,1736308335760,229.13702523,0.00021516,3]
[348096087,1736308914040,164.021727,0.00013973,2]
[348096088,1736309140135,-164.3116684,0.00019246,2]
[348096089,1736309140155,-70.59216444,0.0001934,2]
[348096090,1736309229087,-277.19952592,0.00018956,2]
[348096091,1736309229114,-2412.1872637,0.00019047,2]
[348096092,1736309229137,-277.19952592,0.00019147,2]
[348096093,1736309229162,-302.8788636,0.00019243,2]
[348096094,1736309229186,-171.20096902,0.00019604,2]
[348096095,1736309229212,-164.3116684,0.00019636,2]
[348096096,1736309229235,-300.0,0.00019704,2]
[348096097,1736309229259,-2277.0,0.00019704,2]
[348096098,1736309229282,-370.10837962,0.00019704,2]
[348096099,1736309229307,-500.0,0.00019705,2]
[348096100,1736309229331,-500.0,0.00019705,2]
[348096101,1736309229355,-500.0,0.00019705,2]
[348096102,1736309229397,-500.0,0.00019705,2]
[348096103,1736309229428,-197.81049672,0.00019705,2]
[348096104,1736309229455,-151.34303062,0.00019766,2]
[348096105,1736309229483,-443.299965,0.00019905,2]
[348096106,1736309229509,-320.3480508,0.00019977,2]
[348096107,1736309229532,-234.36334662,0.00019999,3]
[348096108,1736309229553,-502.84931754,0.00019999,3]
[348096109,1736309229578,-500.0,0.00019999,3]
[348096110,1736309229603,-508.14053131,0.00019999,3]
[348096111,1736309229627,-500.0,0.00019999,3]
[348096112,1736309229652,-500.0,0.00019999,3]
[348096113,1736309229678,-513.02607268,0.00019999,3]
[348096114,1736309229703,-500.0,0.00019999,3]
[348096115,1736309229729,-152.0,0.00020091,2]
[348096116,1736309229756,-171.20096901,0.00020202,2]
[348096117,1736309229782,-509.12188991,0.00020273,3]
[348096118,1736309229811,-508.42542992,0.00020273,3]
[348096119,1736309229834,-191.37327281,0.00020273,3]
[348096120,1736309229860,-2948.0,0.00020493,2]
[348096121,1736309229882,-171.20096901,0.000208,2]
[348096122,1736309229906,-150.0,0.000209,2]
[348096123,1736309229930,-1936.09170426,0.00020908,2]
[348096124,1736309229955,-532.5000683,0.00021313,2]
[348096125,1736309229981,-503.48261174,0.00021421,2]
[348096126,1736309230004,-500.0,0.00021421,3]
[348096127,1736309230027,-501.55785983,0.00021421,2]
[348096128,1736309230050,-500.0,0.00021421,3]
[348096129,1736309230075,-500.0,0.00021421,3]
[348096130,1736309230102,-500.0,0.00021421,3]
[348096131,1736309230126,-500.0,0.00021421,3]
[348096132,1736309230150,-500.0,0.00021421,3]
[348096133,1736309230174,-500.0,0.00021421,3]
[348096134,1736309230198,-500.0,0.00021421,3]
[348096135,1736309230222,-500.0,0.00021421,3]
[348096136,1736309230245,-500.0,0.00021421,3]
[348096137,1736309230267,-14418.2942405,0.00021421,2]
[348096138,1736309230290,-420.0,0.00021462,2]
[348096139,1736309230316,-543.954,0.00021514,2]
[348096140,1736309230339,-505.5178555,0.00021517,3]
[348096141,1736309230364,-500.0,0.00021517,5]
[348096142,1736309230389,-508.13863411,0.00021517,3]
[348096143,1736309230546,-507.8373543,0.00021517,3]
[348096144,1736309230572,-194.43559839,0.00021517,3]
[348096145,1736309230594,-554.73015269,0.00021517,3]
[348096146,1736309230612,-500.0,0.00021517,3]
[348096147,1736309230630,-500.0,0.00021517,3]
[348096148,1736309230648,-508.04223103,0.00021517,3]
[348096149,1736309230668,-510.80438608,0.00021517,3]
[348096150,1736309230688,-508.52348899,0.00021517,3]
[348096151,1736309230708,-508.27356375,0.00021517,3]
[348096152,1736309230729,-508.5296638,0.00021517,3]
[348096153,1736309230751,-136.67866246,0.00021517,3]
[348096154,1736309236138,-144.56729796,0.00021517,3]
[348096155,1736309236158,-506.79244207,0.00021517,3]
[348096156,1736309236179,-500.0,0.00021517,3]
[348096157,1736309236200,-506.6807908,0.00021517,3]
[348096158,1736309236222,-500.0,0.00021517,3]
[348096159,1736309236243,-507.6121154,0.00021517,3]
[348096160,1736309236264,-509.37102259,0.00021517,3]
[348096161,1736309236284,-500.0,0.00021517,3]
[348096162,1736309236304,-506.89316175,0.00021517,3]
[348096163,1736309236323,-506.72851236,0.00021517,3]
[348096164,1736309236355,-500.0,0.00021517,3]
[348096165,1736309236380,-500.0,0.00021517,3]
[348096166,1736309236405,-159.73467445,0.00021517,3]
[348096167,1736309242088,-226.7136,0.00019756,2]
[348096168,1736309243093,-181.9264,0.00019756,2]
[348096169,1736309243118,-181.84581599,0.00021362,2]
[348096170,1736309243140,-242.84180791,0.00021421,3]
[348096171,1736309250129,-408.64,0.00019558,2]
[348096172,1736309250151,-2230.13819209,0.00021421,3]
[348096173,1736309250173,-348.61033022,0.00021517,3]
[348096174,1736309250195,-508.98104737,0.00021517,3]
[348096175,1736309250216,-506.8537545,0.00021517,3]
[348096176,1736309250239,-500.0,0.00021517,3]
[348096177,1736309250261,-500.0,0.00021517,3]
[348096178,1736309250284,-506.50101696,0.00021517,3]
[348096179,1736309250306,-504.98855668,0.00021518,3]
[348096180,1736309250327,-511.18957035,0.00021518,3]
[348096181,1736309250348,-1006.78788159,0.00021571,2]
[348096182,1736309250373,-500.0,0.00021695,3]
[348096183,1736309250395,-505.99462717,0.00021695,3]
[348096184,1736309250418,-152.74,0.00021695,3]
[348096185,1736309250439,-500.0,0.00021695,3]
[348096186,1736309250461,-500.0,0.00021695,3]
[348096187,1736309250483,-500.0,0.00021695,3]
[348096188,1736309250504,-2028.60633951,0.00021695,3]
[348096189,1736309360643,-236.27623842,0.00019168,2]
[348096190,1736309360666,-236.27623842,0.00019362,2]
[348096191,1736309360689,-150.0,0.00019365,2]
[348096192,1736309360712,-13618.6408547,0.0002123,2]
[348096193,1736309360736,-500.0,0.00021421,3]
[348096194,1736309360759,-505.38692903,0.00021517,3]
[348096195,1736309360782,-444.37366049,0.00021695,3]
[348096196,1736309360804,-500.0,0.00021695,3]
[348096197,1736309360825,-1006.78788159,0.00021789,2]
[348096198,1736309360848,-300.0,0.0002179,2]
[348096199,1736309360872,-206.21897067,0.00021791,3]
[348096200,1736309360893,-348.59536253,0.00021791,3]
[348096201,1736309360915,-500.0,0.00021791,3]
[348096202,1736309360942,-500.0,0.00021791,3]
[348096203,1736309361113,-500.0,0.00021791,3]
[348096204,1736309361138,-500.0,0.00021791,3]
[348096205,1736309361161,-195.22,0.00021969,3]
[348096206,1736309361188,-500.0,0.00021969,3]
[348096207,1736309361213,-500.0,0.00021969,3]
[348096208,1736309361235,-2472.98,0.00021969,3]
[348096209,1736309361258,-500.0,0.00021969,3]
[348096210,1736309361280,-180.0,0.00022,2]
[348096211,1736309361303,-500.0,0.00022065,3]
[348096212,1736309361326,-500.0,0.00022065,3]
[348096213,1736309361349,-500.0,0.00022065,3]
[348096214,1736309361373,-500.0,0.00022065,3]
[348096215,1736309361395,-150.0,0.000221,2]
[348096216,1736309361417,-2948.0,0.00022133,4]
[348096217,1736309361445,-688.294,0.0002222,2]
[348096218,1736309361469,-500.0,0.00022243,3]
[348096219,1736309361496,-500.0,0.00022243,3]
[348096220,1736309361519,-2472.98,0.00022243,3]
[348096221,1736309361541,-500.0,0.00022243,3]
[348096222,1736309361563,-179.15968922,0.00022339,3]
[348096223,1736309361585,-500.0,0.00022339,3]
[348096224,1736309361608,-500.0,0.00022339,3]
[348096225,1736309361630,-546.0490462,0.00022339,3]
[348096226,1736309361652,-500.0,0.00022516,3]
[348096227,1736309361674,-500.0,0.00022516,3]
[348096228,1736309361697,-2472.98,0.00022516,3]
[348096229,1736309361718,-638.28,0.00022516,3]
[348096230,1736309361741,-500.0,0.00022613,3]
[348096231,1736309361765,-500.0,0.00022613,3]
[348096232,1736309361788,-500.0,0.0002279,3]
[348096233,1736309361810,-500.0,0.0002279,3]
[348096234,1736309361831,-1640.7893324,0.0002279,3]
[348096235,1736309364143,-500.0,0.00021387,2]
[348096236,1736309364165,-1132.52384488,0.00021935,2]
[348096237,1736309364190,-137.27775512,0.00022143,2]
[348096292,1736309432494,-1466.32702441,0.00020143,2]
[348096294,1736309432505,-158.66486959,0.00020888,2]
[348096296,1736309432514,-500.0,0.00021099,2]
[348096298,1736309432524,-500.0,0.00021312,3]
[348096300,1736309432533,-646.93607722,0.00021421,3]
[348096302,1736309432543,-1061.6477187,0.00021548,2]
[348096304,1736309432552,-281.20307045,0.00021586,3]
[348096306,1736309432561,-300.0,0.0002198,2]
[348096308,1736309432570,-506.33450397,0.00021981,2]
[348096312,1736309432598,-2838.4441485,0.00021981,2]
[348096897,1736309438425,-26.10042587,0.00021981,2]
[348096899,1736309438437,-10504.80368416,0.00021981,2]
[348096901,1736309438447,-44.56806086,0.00022143,2]
[348096903,1736309438456,-247.25695919,0.0002279,3]
[348096906,1736309438468,-584.93370841,0.0002279,3]
[348096908,1736309438480,-500.0,0.00022887,3]
[348096910,1736309438490,-500.0,0.00022887,3]
[348096911,1736309438502,-210.00280944,0.000229,2]
[348096914,1736309438512,-301.8540808,0.00022989,2]
[348096915,1736309438521,-210.00280944,0.00022991,2]
[348096918,1736309438532,-571.80071032,0.00022998,3]
[348096920,1736309438542,-500.0,0.00022998,3]
[348096922,1736309438551,-828.23,0.00022998,3]
[348096924,1736309438560,-505.65156595,0.00022998,3]
[348096926,1736309438570,-507.96854373,0.00022998,3]
[348096928,1736309438580,-683.18,0.00022998,3]
[348096929,1736309438590,-152.92,0.00023,31]
[348096931,1736309438599,-152.92,0.00023,31]
[348096933,1736309438608,-152.92,0.00023,31]
[348096935,1736309438618,-152.92,0.00023,31]
[348096938,1736309438627,-152.92,0.00023,31]
[348096940,1736309438636,-152.92,0.00023,31]
[348096942,1736309438645,-152.92,0.00023,31]
[348096944,1736309438658,-397.86,0.00023,2]
[348096946,1736309438668,-196.6358424,0.00023002,2]
[348096948,1736309438677,-236.2007894,0.00023002,2]
[348096950,1736309438687,-183.33450686,0.00023002,2]
[348096952,1736309438696,-87.93345934,0.00023002,2]
[348097204,1736309441498,-412.06654066,0.00023002,2]
[348097205,1736309441508,-500.0,0.00023002,2]
[348097207,1736309441518,-499.22572164,0.00023002,2]
[348097209,1736309441527,-510.57870081,0.00023002,2]
[348097211,1736309441536,-500.0,0.00023002,2]
[348097213,1736309441545,-500.0,0.00023002,2]
[348097215,1736309441554,-376.64049445,0.00023002,2]
[348097217,1736309441563,-500.0,0.00023002,2]
[348097219,1736309441573,-448.39724032,0.00023002,2]
[348097221,1736309441582,-500.0,0.00023002,2]
[348097223,1736309441591,-500.0,0.00023002,2]
[348097225,1736309441600,-500.0,0.00023002,2]
[348097227,1736309441610,-500.0,0.00023002,2]
[348097229,1736309441620,-281.32765546,0.00023002,2]
[348097231,1736309441629,-500.0,0.00023002,2]
[348097233,1736309441638,-500.0,0.00023002,2]
[348097235,1736309441647,-500.0,0.00023002,2]
[348097237,1736309441657,-508.38803694,0.00023003,3]
[348097239,1736309441666,-193.34338187,0.00023003,3]
[348097241,1736309441675,-192.5,0.00023003,7]
[348097243,1736309441684,-192.5,0.00023003,7]
[348097245,1736309441693,-192.5,0.00023003,7]
[348097247,1736309441702,-192.5,0.00023003,7]
[348097249,1736309441711,-192.5,0.00023003,7]
[348097251,1736309441720,-192.5,0.00023003,7]
[348097253,1736309441730,-192.5,0.00023003,7]
[348097255,1736309441739,-192.5,0.00023003,7]
[348097257,1736309441748,-192.5,0.00023003,7]
[348097259,1736309441759,-192.5,0.00023003,7]
[348097261,1736309441768,-192.5,0.00023003,7]
[348097263,1736309441777,-192.5,0.00023003,7]
[348097264,1736309441786,-192.5,0.00023003,7]
[348097267,1736309441797,-192.5,0.00023003,7]
[348097268,1736309441806,-192.5,0.00023003,7]
[348097271,1736309441815,-192.5,0.00023003,7]
[348097272,1736309441825,-192.5,0.00023003,7]
[348097275,1736309441834,-192.5,0.00023003,7]
[348097276,1736309441845,-192.5,0.00023003,7]
[348097278,1736309441854,-192.5,0.00023003,7]
[348097280,1736309441863,-109053.14305951,0.00023003,10]
[348097624,1736309446480,-500.0,0.00021312,3]
[348097626,1736309446491,-394.0,0.00022417,2]
[348097628,1736309446501,-463.78125738,0.00023003,10]
[348097642,1736309447816,-5392.44240154,0.00023003,10]
[348097643,1736309473878,186.45010831,0.00020888,61]
[348097644,1736310225631,165.99681,0.00013973,2]
[348097647,1736310428123,-589.960884,0.00019407,2]
[348097648,1736310428145,-589.960884,0.00019801,2]
[348097649,1736310428165,-173.869589,0.00020071,2]
[348097650,1736310428186,-213.899,0.000206,2]
[348097651,1736310428209,-300.0,0.000206,2]
[348097652,1736310428229,-6093.59956742,0.00020601,2]
[348097653,1736310439101,-1455.39082726,0.00020395,2]
[348097654,1736310439123,-4579.10447796,0.00020601,2]
[348097660,1736310550154,-935.9668319,0.00020039,2]
[348097661,1736310550200,-4863.85296532,0.00020601,2]
[348097662,1736310550222,-300.0,0.00020798,2]
[348097663,1736310550243,-500.0,0.00020799,2]
[348097664,1736310550264,-1966.21,0.00020799,3]
[348097665,1736310550286,-500.0,0.00020799,3]
[348097666,1736310550307,-217.45108688,0.00020799,3]
[348097667,1736310550328,-592.7767484,0.00020799,3]
[348097668,1736310550348,-1193.84843402,0.000208,2]
[348097669,1736310550371,-4425.50633812,0.000208,2]
[348097670,1736310550392,-3483.48688019,0.000209,2]
[348097671,1736310550413,-1120.0,0.000209,2]
[348097672,1736310550436,-8966.0,0.000209,2]
[348097673,1736310550456,-225.31149674,0.000209,2]
[348097674,1736310550475,-1405.15331505,0.00020903,2]
[348097675,1736310550495,-5707.29558905,0.00021,2]
[348097676,1736310550515,-4622.21953605,0.00021,2]
[348097677,1736310550534,-426.56905909,0.0002101,2]
[348097678,1736310550553,-152.0,0.00021048,2]
[348097679,1736310550574,-7736.93770291,0.00021061,2]
[348097680,1736310550594,-5000.0,0.00021061,2]
[348097681,1736310550615,-5000.0,0.00021061,2]
[348097682,1736310550636,-5000.0,0.00021061,2]
[348097683,1736310550657,-5000.0,0.00021061,2]
[348097684,1736310550679,-1966.21,0.00021073,3]
[348097685,1736310550700,-500.0,0.00021073,3]
[348097686,1736310550724,-156.85,0.00021103,2]
[348097687,1736310550746,-1966.21,0.00021347,3]
[348097688,1736310550768,-500.0,0.00021347,3]
[348097689,1736310550788,-503.0013395,0.0002142,2]
[348097690,1736310550823,-500.0,0.0002142,3]
[348097691,1736310550849,-501.42150559,0.0002142,2]
[348097692,1736310550876,-500.0,0.0002142,3]
[348097693,1736310550899,-500.0,0.0002142,3]
[348097694,1736310550922,-188.0,0.0002142,2]
[348097695,1736310550943,-500.0,0.0002142,3]
[348097696,1736310550964,-500.0,0.0002142,2]
[348097697,1736310550987,-819.76,0.00021517,3]
[348097698,1736310551009,-500.0,0.00021517,3]
[348097699,1736310551034,-654.72,0.00021517,3]
[348097700,1736310551056,-192.0,0.00021522,2]
[348097701,1736310551079,-478.21683972,0.00021597,2]
[348097702,1736310551103,-1966.21,0.00021621,3]
[348097703,1736310551126,-454.12327064,0.00021621,3]
[348097704,1736310551147,-230.0788142,0.00021694,2]
[348097705,1736310551167,-503.54838043,0.00021694,2]
[348097706,1736310551191,-819.76,0.00021791,3]
[348097707,1736310551217,-500.0,0.00021791,3]
[348097708,1736310551240,-654.72,0.00021791,3]
[348097709,1736310551261,-153.0,0.00021867,2]
[348097710,1736310551284,-153.0,0.00021867,2]
[348097711,1736310551307,-153.0,0.00021867,2]
[348097712,1736310551331,-153.0,0.00021872,2]
[348097713,1736310551355,-153.0,0.00021872,2]
[348097714,1736310551504,-153.0,0.00021872,2]
[348097715,1736310551529,-153.0,0.00021877,2]
[348097716,1736310551550,-153.0,0.00021877,2]
[348097717,1736310551572,-1966.21,0.00021895,3]
[348097718,1736310551595,-840.49791506,0.000219,2]
[348097719,1736310551618,-500.0,0.00021917,2]
[348097720,1736310551640,-500.0,0.00021917,2]
[348097721,1736310551661,-505.15584056,0.00021968,2]
[348097722,1736310551683,-840.49791503,0.00021969,2]
[348097723,1736310551704,-9703.21073867,0.00021995,2]
[348097724,1736310551727,-487.75870461,0.00022,2]
[348097725,1736310551750,-840.49791503,0.00022038,2]
[348097726,1736310551771,-409.5409736,0.00022055,2]
[348097727,1736310551793,-819.76,0.00022065,3]
[348097728,1736310551815,-500.0,0.00022065,3]
[348097729,1736310551836,-500.0,0.00022065,2]
[348097730,1736310551857,-654.72,0.00022065,3]
[348097731,1736310551883,-1120.0,0.000221,2]
[348097732,1736310551904,-8966.0,0.000221,2]
[348097733,1736310551927,-840.49791503,0.00022107,2]
[348097734,1736310551950,-1966.21,0.00022169,3]
[348097735,1736310551972,-165.99681,0.00022174,2]
[348097736,1736310551994,-840.49791503,0.00022176,2]
[348097737,1736310552016,-840.49791503,0.00022245,2]
[348097738,1736310552037,-337.05639281,0.00022304,2]
[348097739,1736310552059,-840.49791503,0.00022314,2]
[348097740,1736310552080,-9703.21073867,0.00022332,2]
[348097741,1736310552103,-819.76,0.00022339,3]
[348097742,1736310552126,-400.44,0.00022339,3]
[348097743,1736310552148,-500.0,0.00022339,2]
[348097744,1736310552171,-654.72,0.00022339,3]
[348097745,1736310552193,-500.0,0.00022378,2]
[348097746,1736310552214,-602.98861989,0.00022378,2]
[348097747,1736310552235,-500.0,0.00022378,2]
[348097748,1736310552258,-500.0,0.00022378,2]
[348097749,1736310552280,-500.0,0.00022378,2]
[348097750,1736310552301,-500.0,0.00022378,2]
[348097751,1736310552323,-401.73711009,0.00022378,2]
[348097752,1736310552349,-500.0,0.00022378,2]
[348097753,1736310552374,-500.0,0.00022378,2]
[348097754,1736310552396,-487.96910953,0.00022378,2]
[348097755,1736310552419,-500.0,0.00022378,2]
[348097756,1736310552440,-475.37019158,0.00022378,2]
[348097757,1736310552462,-505.68601587,0.00022378,2]
[348097758,1736310552484,-469.52491618,0.00022378,2]
[348097759,1736310552508,-500.0,0.00022378,2]
[348097760,1736310552531,-500.0,0.00022378,2]
[348097761,1736310552554,-500.0,0.00022378,2]
[348097762,1736310552576,-500.0,0.00022378,2]
[348097763,1736310552599,-500.0,0.00022378,2]
[348097764,1736310552624,-500.0,0.00022378,2]
[348097765,1736310552647,-500.0,0.00022378,2]
[348097766,1736310552670,-500.0,0.00022378,2]
[348097767,1736310552693,-298.59963352,0.00022378,2]
[348097768,1736310552717,-500.0,0.00022378,2]
[348097769,1736310552740,-500.0,0.00022378,2]
[348097770,1736310552762,-500.0,0.00022378,2]
[348097771,1736310552784,-500.0,0.00022378,2]
[348097772,1736310552806,-500.0,0.00022378,2]
[348097773,1736310552828,-320.05798345,0.00022378,2]
[348097774,1736310552849,-151.64381686,0.00022378,2]
[348097775,1736310552914,-348.35618314,0.00022378,2]
[348097776,1736310552937,-500.0,0.00022378,2]
[348097777,1736310552962,-500.0,0.00022378,2]
[348097778,1736310552984,-500.0,0.00022378,2]
[348097779,1736310553006,-511.23579973,0.00022378,2]
[348097780,1736310553027,-840.49791503,0.00022383,2]
[348097781,1736310553049,-394.0,0.00022417,2]
[348097782,1736310553073,-1966.21,0.00022443,3]
[348097783,1736310553095,-840.49791503,0.00022452,2]
[348097784,1736310553118,-190.1641859,0.00022483,2]
[348097785,1736310553761,438.4840796,0.00022192,2]
[348097786,1736310554455,160.381845,0.00022192,2]
[348097787,1736310555708,155.0434598,0.00022466,2]
[348097788,1736310565476,709.38,0.0002218,2]
[348097789,1736310571095,-840.49791503,0.00022521,2]
[348097790,1736310571118,-840.49791503,0.0002259,2]
[348097791,1736310571144,-819.76,0.00022613,3]
[348097792,1736310571168,-654.72,0.00022613,3]
[348097793,1736310571190,-420.0,0.00022628,2]
[348097794,1736310571212,-4900.20604586,0.00022636,2]
[348097795,1736310582205,249.66117748,0.00019757,2]
[348097814,1736310632694,1034.77065234,0.00020278,2]
[348097829,1736310632890,-4803.00469282,0.00022636,2]
[348097832,1736310632904,-840.49791503,0.00022659,2]
[348097834,1736310632916,-1966.21,0.00022717,3]
[348097836,1736310632926,-840.49791503,0.00022728,2]
[348097838,1736310632938,-840.49791503,0.00022797,2]
[348097840,1736310632949,-5544.0,0.00022865,2]
[348097842,1736310632959,-300.0,0.00022865,2]
[348097844,1736310632970,-840.49791503,0.00022866,2]
[348097845,1736310632981,-2988.39160882,0.0002287,2]
[348097846,1736310632991,-819.76,0.00022887,3]
[348097847,1736310633002,-654.72,0.00022887,3]
[348097848,1736310633013,-294.92434372,0.00022902,2]
[348097849,1736310633024,-294.92434371,0.00022902,2]
[348097850,1736310633035,-294.92434371,0.00022903,2]
[348097851,1736310633046,-294.92434371,0.00022903,2]
[348097852,1736310633057,-294.92434371,0.00022904,2]
[348097853,1736310633069,-294.92434371,0.00022904,2]
[348097854,1736310633080,-294.92434371,0.00022905,2]
[348097855,1736310633092,-514.18061058,0.00022905,2]
[348097856,1736310633104,-840.49791503,0.00022934,2]
[348097857,1736310633116,-508.96060096,0.00022959,2]
[348097858,1736310633126,-440.90763689,0.00022991,3]
[348097880,1736310638752,-294.92434371,0.00022905,2]
[348097881,1736310638764,-1525.30236311,0.00022991,3]
[348097882,1736310638774,-507.37636498,0.00022997,3]
[348097883,1736310638785,-500.0,0.00022997,3]
[348097884,1736310638797,-500.0,0.00022997,3]
[348097885,1736310638808,-358.07,0.00023,2]
[348097886,1736310638820,-152.97,0.00023,31]
[348097887,1736310638831,-152.97,0.00023,31]
[348097888,1736310638842,-157.27093455,0.00023,3]
[348097889,1736310638856,-151.0,0.00023002,7]
[348097890,1736310638867,-165.016649,0.00023002,7]
[348097891,1736310638879,-151.0,0.00023002,7]
[348097892,1736310638891,-151.0,0.00023002,7]